Cogmind - Beta 12 @@@ ROGUE MODE // 2023.12.10 @ 06:58:13 Player: ApricotBot Result: Destroyed by as-75512 with Assembled Maul Performance ------------- Evolutions (0) 0 Regions Visited (2) 400 Robots Destroyed (9) 45 Value Destroyed (151) 151 Prototype IDs (0) 0 Alien Tech Used (0) 0 Bonus (0) 0 TOTAL SCORE: 596 Bonus ------- None Cogmind --------- Core Integrity 0/250 Matter 260/300 Energy 60/100 System Corruption 2% Temperature Cool (2) Movement Flying (37) Location -10/Mines Parts ------- > --- POWER (1) -------- (None) > --- PROPULSION (2) --- Flight Unit Flight Unit > --- UTILITY (2) ------ Small Storage Unit > --- WEAPON (2) ------- (None) > --- INVENTORY (8) ---- Wheel Flight Unit Flight Unit Small Storage Unit Peak State ------------ > --- POWER ------------ Ion Engine > --- PROPULSION ------- Aluminum Leg Aluminum Leg > --- UTILITY ---------- Small Storage Unit Light Armor Plating > --- WEAPON ----------- Assault Rifle Light Assault Rifle > --- INVENTORY -------- Wheel Small Storage Unit [Rating: 7] Favorites ----------- Power Ion Engine Engine Ion Engine Propulsion Aluminum Leg Leg Aluminum Leg Wheel Wheel Flight Unit Flight Unit Utility Small Storage Unit Storage Small Storage Unit Protection Light Armor Plating Weapon Light Assault Rifle Ballistic Gun Light Assault Rifle Build | -11 -10 -10 ------- Run | Jun Mat Min Slots Evolved . | . . . Power . | . . . Propulsion . | . . . Utility . | . . . Weapon . | . . . Parts Attached 15 | 5 2 8 Power 2 | 1 . 1 Engine 2 | 1 . 1 Core . | . . . Reactor . | . . . Propulsion 6 | 2 . 4 Treads . | . . . Leg 3 | 2 . 1 Wheel 1 | . . 1 Hover . | . . . Flight 2 | . . 2 Utility 3 | 1 1 1 Device . | . . . Storage 2 | 1 . 1 Processor . | . . . Hackware . | . . . Protection 1 | . 1 . Artifact . | . . . Weapon 4 | 1 1 2 Energy Gun . | . . . Energy Cannon . | . . . Ballistic Gun 4 | 1 1 2 Ballistic Cannon . | . . . Launcher . | . . . Special Weapon . | . . . Impact Weapon . | . . . Slashing Weapon . | . . . Piercing Weapon . | . . . Special Melee Weapon . | . . . Unidentified Prototypes . | . . . Parts Lost 7 | . . 7 Power 1 | . . 1 Propulsion 2 | . . 2 Utility 1 | . . 1 Weapon 3 | . . 3 Highest Loss Streak 6 | . . 6 To Critical Strikes . | . . . Average Slot Usage (%) 91 | . 92 89 Engine 13 | . 14 12 Leg 25 | . 28 23 Storage 18 | . 14 22 Protection 6 | . 10 3 Ballistic Gun 24 | . 24 24 Naked Turns . | . . . Heaviest Build 16 | 12 16 16 Greatest Support 20 | 20 20 20 Greatest Overweight (x) 1 | 1 . 1 Average Overweight (x) . | . . . Largest Inventory Capacity 8 | 8 8 8 Average Capacity 7 | 6 8 8 Most Carried 8 | 3 8 8 Average Carried 5 | 1 4 7 Final Capacity 8 | 8 8 8 Final Carried 8 | 1 8 4 Class Distribution -------------------- 100% | Mutant Dominant Class ---------------- Mutant | -10/Materials Mutant | -10/Mines Resources | -11 -10 -10 ----------- Run | Jun Mat Min Matter Collected 439 | 246 63 130 Remotely . | . . . Salvage Created 192 | . 67 125 Parts 18 | . 6 12 Haulers Intercepted . | . . . Recyclers Shooed . | . . . Parts Field Recycled . | . . . Retrieved Matter . | . . . Parts Self-Destructed . | . . . Prevented . | . . . Kills | -11 -10 -10 ------- Run | Jun Mat Min Combat Hostiles Destroyed 9 | . 4 5 Guns 9 | . 4 5 Classes Destroyed 2 | . 1 1 Swarmer 7 | . 4 3 Grunt 2 | . . 2 Best Kill Streak 3 | . 3 3 Combat Bots Only 3 | . 3 3 Max Kills in Single Turn 2 | . 2 1 Gunslinging 1 | . 1 . Exploded . | . . . Melee . | . . . Uniques/NPCs Destroyed . | . . . Combat | -11 -10 -10 -------- Run | Jun Mat Min Damage Taken 1113 | . 171 942 Core 277 | . 30 247 Absorbed by Shields . | . . . Core Remaining (%) 100 | 100 . . Volleys Fired 36 | 1 10 25 Largest 2 | 1 2 2 Hottest 40 | 20 40 40 Shots Fired 65 | 1 20 44 Gun 65 | 1 20 44 Cannon . | . . . Launcher . | . . . Special . | . . . Kinetic 65 | 1 20 44 Thermal . | . . . Explosive . | . . . Electromagnetic . | . . . Robot Hit Streak 4 | . 2 4 Robot Miss Streak 5 | . 5 5 Penetration Max . | . . . Secondary Targets 3 | . 1 2 Max Gunslinging Chain 1 | . 1 1 Shots Hit Robots 28 | . 7 21 Core Hits 16 | . 5 11 Critical Kills . | . . . Critical Parts Destroyed 1 | . 1 . Critical Strikes 1 | . 1 . Destroy 1 | . 1 . Melee Attacks . | . . . Impact . | . . . Slashing . | . . . Piercing . | . . . Sneak Attacks . | . . . Combat Hostiles . | . . . Follow-up Attacks . | . . . Damage Inflicted 326 | . 88 238 Guns 316 | . 88 228 Cannons . | . . . Explosions . | . . . Melee . | . . . Ramming 10 | . . 10 Kinetic 316 | . 88 228 Thermal . | . . . Explosive . | . . . Electromagnetic . | . . . Impact . | . . . Slashing . | . . . Piercing . | . . . Highest Corruption 2 | . . 2 Average Corruption 2 | . . 2 Corruption Purged . | . . . Corruption Blocked . | . . . Overload Shots . | . . . Overflow Damage . | . . . Projectiles . | . . . Explosions . | . . . Melee . | . . . Knockbacks . | . . . Impact . | . . . Kinetic . | . . . Secondary . | . . . Self-Inflicted Damage . | . . . Shots . | . . . Rammed . | . . . Targets Rammed 1 | . . 1 Kicked 1 | . . 1 Crushed . | . . . Highest Temperature 49 | . 12 49 Average Temperature 14 | . 5 19 Received Heat Transfer 207 | . . 207 Siege Activations . | . . . Robots Corrupted . | . . . Combat Hostiles . | . . . Parts Fried . | . . . Impact Corruptions . | . . . Robots Melted . | . . . Combat Hostiles . | . . . Parts Melted . | . . . Heat Transferred . | . . . Parts Sabotaged . | . . . Parts Stolen . | . . . Parts Stripped . | . . . Power Chain Reactions . | . . . Missiles Intercepted . | . . . Alert | -11 -10 -10 ------- Run | Jun Mat Min Peak Influence 142 | . 135 142 Initial 52 | . . 52 Average 69 | . 66 90 Maximum Alert Level . | . . . Low Security (%) 100 | 100 100 100 Level 1 . | . . . Level 2 . | . . . Level 3 . | . . . Level 4 . | . . . Level 5 . | . . . High Security . | . . . Max Security . | . . . Squads Dispatched . | . . . Investigation . | . . . Extermination . | . . . Reinforcement . | . . . Assault . | . . . Garrison . | . . . Intercept . | . . . Searches Triggered . | . . . Construction Impeded . | . . . Haulers Reinforced . | . . . Active Scanning Responses . | . . . Cargo Convoy Interrupts . | . . . Stealth | -11 -10 -10 --------- Run | Jun Mat Min Distress Signals . | . . . Communications Jammed . | . . . Distress Signals . | . . . Times Spotted 30 | . 7 23 Peak Tracking Total 12 | . 3 12 Tactical Retreats 3 | . 2 1 Traps | -11 -10 -10 ------- Run | Jun Mat Min Traps Triggered . | . . . Indirectly . | . . . Trap Hack Attempts . | . . . Triggered . | . . . Disarmed . | . . . Reprogrammed . | . . . Reused . | . . . Traps Extracted . | . . . Installed . | . . . Triggered . | . . . Machines | -11 -10 -10 ---------- Run | Jun Mat Min Machines Disabled . | . . . Max in Single Turn . | . . . Machines Repaired . | . . . Machines Sabotaged . | . . . Overloaded Fab Kills . | . . . Hacking | -11 -10 -10 --------- Run | Jun Mat Min Machines Accessed . | . . . Terminals . | . . . Fabricators . | . . . Repair Stations . | . . . Recycling Units . | . . . Scanalyzers . | . . . Garrison Access . | . . . Total Hacks . | . . . Successful . | . . . Failed . | . . . Catastrophic . | . . . Database Lockouts . | . . . Manual . | . . . Terminals . | . . . Fabricators . | . . . Repair Stations . | . . . Recycling Units . | . . . Scanalyzers . | . . . Garrison Access . | . . . Terminal Hacks . | . . . Fabricator Hacks . | . . . Repair Station Hacks . | . . . Recycling Unit Hacks . | . . . Scanalyzer . | . . . Garrison Access Hacks . | . . . Unauthorized Hacks . | . . . Terminals . | . . . Fabricators . | . . . Repair Stations . | . . . Recycling Units . | . . . Scanalyzers . | . . . Garrison Access . | . . . Data Cores Recovered . | . . . Used . | . . . Hacking Detections . | . . . Full Trace Events . | . . . Feedback Events . | . . . Feedback Blocked . | . . . Robot Schematics Acquired . | . . . Robots Built . | . . . Authchips . | . . . Time . | . . . Total Robot Build Rating . | . . . Part Schematics Acquired . | . . . Parts Built . | . . . Authchips . | . . . Time . | . . . Total Part Build Rating . | . . . Parts Repaired . | . . . Time . | . . . Parts Recycled . | . . . Recycled Matter . | . . . Retrieved Matter . | . . . Retrieved Components . | . . . Parts Scanalyzed . | . . . Part Schematics Acquired . | . . . Parts Damaged . | . . . Bothacking | -11 -10 -10 ------------ Run | Jun Mat Min Used RIF Installer . | . . . Robots Hacked . | . . . Non-combat . | . . . Combat . | . . . Robot Hacks Applied . | . . . Relay Couplers Released . | . . . Fabnet Peak Effective % . | . . . Robots Rewired . | . . . Allies Hacked . | . . . Hacks Repelled . | . . . Allies | -11 -10 -10 -------- Run | Jun Mat Min Total Allies . | . . . Largest Group . | . . . Highest-Rated Group . | . . . Highest-Rated Ally . | . . . Total Orders . | . . . Ally Attacks . | . . . Total Damage . | . . . Kills . | . . . Allies Corrupted . | . . . Allies Melted . | . . . Intel | -11 -10 -10 ------- Run | Jun Mat Min Robot Analysis Total . | . . . Derelict Logs Recovered 1 | . . 1 Drone Launches . | . . . Drone Recoveries . | . . . Exploration | -11 -10 -10 ------------- Run | Jun Mat Min Turns Passed 504 | 63 200 241 Spaces Moved 297 | 44 112 141 Core 11 | 11 . . Treads . | . . . Legs 265 | 33 112 120 Wheels 18 | . . 18 Hover . | . . . Flight 3 | . . 3 Fastest Speed 37 | 50 120 37 Average Speed 116 | 112 120 115 Slowest Speed 190 | 120 120 190 Overloaded Moves . | . . . Propulsion Burnouts . | . . . Robots Hopped . | . . . Cave-ins Triggered . | . . . Exploration Rate (%) 23 | 3 27 39 Regions Visited 2 Branch Regions 1 Pre-discovered Areas . | . . . Known Exits Taken . | . . . Unknown Exits Taken 2 | 1 1 . Scrap Searched 1 | . . 1 Spaces Dug . | . . . Terrain Destroyed . | . . . Melee . | . . . Projectile . | . . . AOE . | . . . Terrain Rammed . | . . . Walls Destroyed . | . . . Machines Disabled . | . . . Actions | -11 -10 -10 --------- Run | Jun Mat Min Total 397 | 57 159 181 Wait 30 | . 27 3 Move 295 | 43 111 141 Hop . | . . . Pick Up 16 | 7 9 . Fast Attach . | . . . Attach 12 | 5 2 5 Detach 1 | . . 1 Swap 3 | . . 3 Drop 3 | 1 . 2 Fire 36 | 1 10 25 Melee . | . . . Ram . | . . . Kick 1 | . . 1 Crush . | . . . Escape Stasis . | . . . Rewire . | . . . Trap . | . . . Miscellaneous . | . . . Route ------- -11/Junkyard -10/Materials -10/Mines History --------- Turn | Location | Event 11 | -11/Junkyard | Discovered new exit (range 14) 64 | -11/Junkyard | Entered Materials 246 | -10/Materials | Discovered new exit (range 16) 264 | -10/Materials | Entered Mines 307 | -10/Mines | Build established: Mutant 387 | -10/Mines | Learned Materials interactive machine intel 443 | -10/Mines | Assembled infested the area 478 | -10/Mines | Core integrity fell below 50% 502 | -10/Mines | Core integrity fell below 20% 505 | -10/Mines | Destroyed by as-75512 with Assembled Maul Last Messages --------------- 00469_ R-06 Scavenger collects Flight Unit. 00471_ Acquired 10 matter. 00472_ Knocked back. 00472_ R-06 Scavenger collects Flight Unit. 00473_ Acquired 10 matter. 00473_ as-75234 sneak attacks. 00473_ R-06 Scavenger destroyed. 00474_ Aluminum Leg destroyed. 00476_ C-30 ARC bursts open, deploying its payload. 00476_ D-53 Grenadier unfolds itself. 00477_ as-03231 destroyed. 00477_ Ion Engine destroyed. 00477_ Lgt. Assault Rifle destroyed. 00477_ as-17561 destroyed. 00477_ as-75234 destroyed. 00482_ Med. Matter Pod severed. 00484_ as-32273 destroyed. 00488_ as-33608 destroyed. 00501_ as-60184 destroyed. 00504_ Assault Rifle destroyed. Map ----- +----------------------------------------------------+ | ?????????????????????????????????? | | ?????????????????????????????????? | | ?????????????????????????????????? | | ?????????????????????????????????? | | ?????????????????????????????????? | | ?????????????????????????????????? | | ?????????????????????????????????? | | ?????????????????????????????????? | | ?????????????????????????????????? | | ?????????????????????????????????? | | ?????????????????????????????????? | | ?????######## #?????????????????? | | ???### ????????????????????? | | #### #???????????????????#????? | | #?????????????????? ##???? | | #### ###?????????????????? #???? | | ?## ###?????????????????? #???? | | ?# * ##??????????????### #???? | | ?# #?????????###### # #???? | | ?# %[ #?????????# #???? | | # % ## ####### #???? | | # ! #???? | | ## #???? | | ?# % ####### #???? | | ?# ##??????# a #???? | | ?# ##???????# @ #??? | | ?? #????????## # # #?? | | ??### ?????????### a# #?? | | ????# ??????????# ? #?? | | ????#" ?????????# ? ##?? | | ????#%" ?????????####?? #??? | | ???? " ?????????????? #??? | | ??? ####?????????????? #??? | | ??""" ####?????????????????##??? | | ???"" ##????????????????????????? | | ????" ??????????????????????????? | | ???? ??????????????????????????? | | ????? ??????????????????????????? | | ?????????????????????????????????? | | ?????????????????????????????????? | | ?????????????????????????????????? | | ?????????????????????????????????? | | ?????????????????????????????????? | | ?????????????????????????????????? | | ?????????????????????????????????? | | ?????????????????????????????????? | | ?????????????????????????????????? | | ?????????????????????????????????? | | ?????????????????????????????????? | | ?????????????????????????????????? | +----------------------------------------------------+ Best States ------------- Heat Dissipation 25 Energy Generation 10 Energy Capacity 250 Matter Stores 342 Matter Capacity 400 Sight Range 16 Terrain Scan Density 10 Armor Coverage 150 Evasion (%) 55 Item Schematics ----------------- None Robot Schematics ------------------ None Fabricated ------------ Nothing Alien Tech Used ----------------- None Achievements -------------- None Challenges ------------ None Game ------ Seed CommPoweredVibroblade Manual? 0 Play Time 00:14:58 Cumulative 12.4 hours Start 2023.12.10 @ 04:12:25 End 2023.12.10 @ 06:58:13 Sessions 2 Manual Loads 0 Difficulty Rogue Special Mode None Game No. 36 Rogue 30 Adventurer 6 Explorer 0 Win Type - Total 0 Types 0/0/0/0/0/0/0/0/0 Lore% 4 Gallery% 22 Achievement% 15 Wizard Run 0 Options --------- ASCII 0 Keyboard 0 Movement Mouse Keybinds 0 Fullscreen 1 Font 12/Crisp Map View 76x56 Tactical HUD 1 Map Filters NONE Filters NONE Steam 1 RUN: bc781402-daa7-48ee-ad9d-ed097f0dfff3